Cogmind - Beta 10 @@@ ROGUE MODE // 2020.09.17 @ 00:20:39 Player: Sudoku Result: Destroyed by G-47 Trooper with Particle Gun Performance ------------- Evolutions (2) 1000 Regions Visited (6) 1200 Robots Destroyed (29) 145 Value Destroyed (786) 786 Prototype IDs (25) 500 Alien Tech Used (0) 0 Bonus (300) 300 TOTAL SCORE: 3931 Bonus ------- Aligned with FarCom 300 Cogmind --------- Core Integrity 0/550 Matter 24/300 Energy 100/100 System Corruption 0% Temperature Cool (18) Movement Core (550) Ox10 Location -8/Storage Parts ------- > --- POWER (1) -------- (None) > --- PROPULSION (3) --- (None) > --- UTILITY (4) ------ Large Storage Unit Large Storage Unit Modified TNC > --- WEAPON (3) ------- (None) > --- INVENTORY (16) --- Light Nuclear Core Light Nuclear Core Aluminum Leg Aluminum Leg Medium Storage Unit Medium Storage Unit Large Battery (300) Launcher Guidance Computer Gatling Laser Mining Laser Deploy-a-Sentry Deploy-a-Sentry Deploy-a-Sentry Peak State ------------ > --- POWER ------------ Light Angular Momentum Engine > --- PROPULSION ------- Light Treads > --- UTILITY ---------- Large Storage Unit Large Storage Unit Modified TNC > --- WEAPON ----------- Latent Energy Streamer Grenade Launcher > --- INVENTORY -------- Light Nuclear Core Light Nuclear Core Aluminum Leg Aluminum Leg Medium Storage Unit Medium Storage Unit Large Battery Launcher Guidance Computer Gatling Laser Mining Laser Deploy-a-Sentry Deploy-a-Sentry Deploy-a-Sentry [Rating: 29] Favorites ----------- Power Light Ion Engine Engine Light Ion Engine Propulsion Aluminum Leg Treads Light Treads Leg Aluminum Leg Utility Large Storage Unit Device Tractor Beam Storage Large Storage Unit Processor Modified TNC Weapon Grenade Launcher Energy Gun Small Laser Energy Cannon Latent Energy Streamer Ballistic Gun Light Assault Rifle Ballistic Cannon Light Cannon Launcher Grenade Launcher Special Weapon Mining Laser Build | -11 -10 -10 -10 -9 -8 -8 ------- Run | Scr Mat Min Exi Min Mat Sto Slots Evolved 4 | . . . . . 4 . Power . | . . . . . . . Propulsion 1 | . . . . . 1 . Utility 2 | . . . . . 2 . Weapon 1 | . . . . . 1 . Parts Attached 29 | 7 11 . . . 2 9 Power 3 | 1 1 . . . . 1 Engine 3 | 1 1 . . . . 1 Core . | . . . . . . . Reactor . | . . . . . . . Propulsion 6 | 2 2 . . . . 2 Treads 2 | . . . . . . 2 Leg 4 | 2 2 . . . . . Wheel . | . . . . . . . Hover . | . . . . . . . Flight . | . . . . . . . Utility 5 | 2 2 . . . 1 . Device 1 | 1 . . . . . . Storage 3 | 1 2 . . . . . Processor 1 | . . . . . 1 . Hackware . | . . . . . . . Protection . | . . . . . . . Artifact . | . . . . . . . Weapon 15 | 2 6 . . . 1 6 Energy Gun 3 | . 2 . . . 1 . Energy Cannon 1 | . . . . . . 1 Ballistic Gun 5 | 2 2 . . . . 1 Ballistic Cannon 1 | . . . . . . 1 Launcher 4 | . 1 . . . . 3 Special Weapon 1 | . 1 . . . . . Impact Weapon . | . . . . . . . Slashing Weapon . | . . . . . . . Piercing Weapon . | . . . . . . . Special Melee Weapon . | . . . . . . . Unidentified Prototypes . | . . . . . . . Parts Lost 17 | . 3 . . . . 14 Power 3 | . 1 . . . . 2 Propulsion 4 | . . . . . . 4 Utility . | . . . . . . . Weapon 10 | . 2 . . . . 8 Highest Loss Streak 7 | . 3 . . . . 7 Average Slot Usage (%) 92 | . 98 100 100 100 81 61 Engine 11 | . 13 14 14 14 9 3 Treads 1 | . . . . . . 7 Leg 24 | . 28 28 28 28 18 6 Device 1 | . 4 . . . . . Storage 24 | . 23 28 28 28 18 18 Processor 1 | . . . . . 9 9 Energy Gun 9 | . 4 14 14 14 18 5 Ballistic Gun 6 | . 20 . . . . . Launcher 8 | . 1 14 14 14 9 6 Naked Turns . | . . . . . . . Heaviest Build 54 | 12 40 39 39 39 42 54 Greatest Support 40 | 20 20 20 20 20 20 40 Greatest Overweight (x) 17 | . 1 1 1 1 2 17 Average Overweight (x) . | . . 1 1 1 2 1 Largest Inventory Capacity 16 | 6 16 16 16 16 16 16 Average Capacity 14 | 5 13 16 16 16 16 16 Most Carried 16 | 6 16 16 16 16 15 15 Average Carried 13 | 3 11 16 15 16 14 13 Final Capacity 16 | 6 16 16 16 16 16 16 Final Carried 16 | 6 16 16 16 16 14 13 Class Distribution -------------------- 90% | Mutant 9% | Scavenger-Mutant Dominant Class ---------------- Mutant | -10/Materials Mutant | -10/Mines Mutant | -10/Exiles Mutant | -9/Mines Scavenger-Mutant | -8/Materials Mutant | -8/Storage Resources | -11 -10 -10 -10 -9 -8 -8 ----------- Run | Scr Mat Min Exi Min Mat Sto Matter Collected 641 | 278 219 50 . . . 94 Remotely 23 | 23 . . . . . . Salvage Created 824 | 96 443 18 . . . 267 Parts 40 | 2 27 1 . . . 10 Haulers Intercepted . | . . . . . . . Recyclers Shooed 1 | . 1 . . . . . Parts Field Recycled . | . . . . . . . Retrieved Matter . | . . . . . . . Parts Self-Destructed . | . . . . . . . Prevented . | . . . . . . . Kills | -11 -10 -10 -10 -9 -8 -8 ------- Run | Scr Mat Min Exi Min Mat Sto Combat Hostiles Destroyed 23 | . 14 1 . . . 8 Guns 15 | . 12 1 . . . 2 AOE 8 | . 2 . . . . 6 Classes Destroyed 8 | 1 4 . . . . 3 Worker 2 | . 1 . . . . 1 Builder 1 | . 1 . . . . . Recycler 2 | 1 1 . . . . . Watcher 1 | . . . . . . 1 Swarmer 7 | . 6 1 . . . . Grunt 13 | . 8 . . . . 5 Brawler 1 | . . . . . . 1 Sentry 2 | . . . . . . 2 Best Kill Streak 7 | 1 7 1 . . . 6 Combat Bots Only 5 | . 5 1 . . . 4 Max Kills in Single Turn 3 | 1 3 1 . . . 1 Gunslinging . | . . . . . . . Exploded 2 | . 2 . . . . 1 Melee . | . . . . . . . Uniques/NPCs Destroyed . | . . . . . . . Combat | -11 -10 -10 -10 -9 -8 -8 -------- Run | Scr Mat Min Exi Min Mat Sto Damage Taken 2629 | . 790 101 . . . 1738 Core 787 | . 197 33 . . . 557 Absorbed by Shields . | . . . . . . . Core Remaining (%) 54 | 100 . . . 8 . . Volleys Fired 120 | 4 67 3 . . . 46 Largest 3 | 2 2 1 . . . 3 Hottest 125 | 40 105 40 . . . 125 Shots Fired 175 | 8 116 3 . . . 48 Gun 140 | 8 111 3 . . . 18 Cannon 3 | . . . . . . 3 Launcher 31 | . 4 . . . . 27 Special 1 | . 1 . . . . . Kinetic 117 | 8 90 . . . . 19 Thermal 27 | . 22 3 . . . 2 Explosive 31 | . 4 . . . . 27 Electromagnetic . | . . . . . . . Robot Hit Streak 13 | 2 11 3 . . . 13 Robot Miss Streak 3 | 2 3 . . . . 1 Penetration Max . | . . . . . . . Secondary Targets 1 | . 1 . . . . . Max Gunslinging Chain 1 | . 1 . . . . . Shots Hit Robots 123 | 4 79 3 . . . 37 Core Hits 69 | 2 38 1 . . . 28 Critical Hits 1 | . 1 . . . . . Critical Kills . | . . . . . . . Critical Parts Destroyed 1 | . 1 . . . . . Melee Attacks . | . . . . . . . Impact . | . . . . . . . Slashing . | . . . . . . . Piercing . | . . . . . . . Sneak Attacks . | . . . . . . . Combat Hostiles . | . . . . . . . Follow-up Attacks . | . . . . . . . Damage Inflicted 2188 | 38 1019 31 . . . 1100 Guns 1048 | 38 792 31 . . . 187 Cannons 16 | . . . . . . 16 Explosions 1124 | . 227 . . . . 897 Melee . | . . . . . . . Ramming . | . . . . . . . Kinetic 815 | 38 599 . . . . 178 Thermal 249 | . 193 31 . . . 25 Explosive 1124 | . 227 . . . . 897 Electromagnetic . | . . . . . . . Impact . | . . . . . . . Slashing . | . . . . . . . Piercing . | . . . . . . . Highest Corruption . | . . . . . . . Average Corruption . | . . . . . . . Corruption Purged . | . . . . . . . Overload Shots . | . . . . . . . Overflow Damage 17 | . . . . . . 17 Projectiles . | . . . . . . . Explosions 17 | . . . . . . 17 Melee . | . . . . . . . Knockbacks . | . . . . . . . Impact . | . . . . . . . Kinetic . | . . . . . . . Secondary . | . . . . . . . Self-Inflicted Damage 320 | . . . . . . 320 Shots 11 | . . . . . . 11 Rammed . | . . . . . . . Targets Rammed . | . . . . . . . Kicked . | . . . . . . . Crushed . | . . . . . . . Highest Temperature 240 | . 240 . . . . 72 Average Temperature 66 | . 68 . . . . 38 Received Heat Transfer 915 | . 348 . . . . 567 Siege Activations . | . . . . . . . Robots Corrupted . | . . . . . . . Combat Hostiles . | . . . . . . . Parts Fried . | . . . . . . . Impact Corruptions . | . . . . . . . Robots Melted . | . . . . . . . Combat Hostiles . | . . . . . . . Parts Melted 1 | . . 1 . . . . Heat Transferred 594 | . 457 75 . . . 62 Parts Sabotaged . | . . . . . . . Parts Stolen . | . . . . . . . Parts Stripped . | . . . . . . . Power Chain Reactions . | . . . . . . . Missiles Intercepted . | . . . . . . . Alert | -11 -10 -10 -10 -9 -8 -8 ------- Run | Scr Mat Min Exi Min Mat Sto Peak Influence 350 | 5 350 156 . . . 308 Initial 136 | . 3 136 . . . . Average 72 | 1 84 125 . . . 80 Maximum Alert Level 1 | . 1 . . . . 1 Low Security (%) 89 | 100 80 100 . 100 100 81 Level 1 10 | . 19 . . . . 18 Level 2 . | . . . . . . . Level 3 . | . . . . . . . Level 4 . | . . . . . . . Level 5 . | . . . . . . . High Security . | . . . . . . . Max Security . | . . . . . . . Squads Dispatched 6 | . 2 . . . . 4 Investigation 2 | . . . . . . 2 Extermination . | . . . . . . . Reinforcement 4 | . 2 . . . . 2 Assault . | . . . . . . . Garrison . | . . . . . . . Intercept . | . . . . . . . Construction Impeded 1 | . . . . . . 1 Haulers Reinforced . | . . . . . . . Stealth | -11 -10 -10 -10 -9 -8 -8 --------- Run | Scr Mat Min Exi Min Mat Sto Distress Signals 4 | . 1 . . . 1 2 Communications Jammed . | . . . . . . . Distress Signals . | . . . . . . . Times Spotted 49 | . 25 3 . . 2 19 Peak Tracking Total 8 | . 6 3 . . 3 8 Tactical Retreats 5 | . 5 . . . . . Traps | -11 -10 -10 -10 -9 -8 -8 ------- Run | Scr Mat Min Exi Min Mat Sto Traps Triggered 2 | . 1 . . . . 1 Indirectly . | . . . . . . . Trap Hack Attempts . | . . . . . . . Triggered . | . . . . . . . Disarmed . | . . . . . . . Reprogrammed . | . . . . . . . Reused . | . . . . . . . Traps Extracted . | . . . . . . . Installed . | . . . . . . . Triggered . | . . . . . . . Machines | -11 -10 -10 -10 -9 -8 -8 ---------- Run | Scr Mat Min Exi Min Mat Sto Machines Disabled 1 | . 1 . . . . . Max in Single Turn 1 | . 1 . . . . . Machines Sabotaged . | . . . . . . . Garrisons Compromised . | . . . . . . . Overloaded Fab Kills . | . . . . . . . Fab Network Shutdowns . | . . . . . . . Hacking | -11 -10 -10 -10 -9 -8 -8 --------- Run | Scr Mat Min Exi Min Mat Sto Machines Accessed 7 | . 4 . 1 . 1 1 Terminals 3 | . 2 . . . 1 . Fabricators . | . . . . . . . Repair Stations 1 | . 1 . . . . . Recycling Units 2 | . 1 . . . . 1 Scanalyzers . | . . . . . . . Garrison Access . | . . . . . . . Total Hacks 20 | . 15 . 1 . 1 3 Successful 13 | . 9 . 1 . . 3 Failed 7 | . 6 . . . 1 . Catastrophic 1 | . . . . . 1 . Database Lockouts . | . . . . . . . Manual 13 | . 10 . 1 . 1 1 Terminals 13 | . 12 . . . 1 . Fabricators . | . . . . . . . Repair Stations 1 | . 1 . . . . . Recycling Units 5 | . 2 . . . . 3 Scanalyzers . | . . . . . . . Garrison Access . | . . . . . . . Terminal Hacks 6 | . 5 . 1 . . . Prototype ID Bank 1 | . 1 . . . . . Branch Access Points 1 | . 1 . . . . . Terminal Index 1 | . 1 . . . . . Locate Traps 1 | . 1 . . . . . Zone Layout 1 | . 1 . . . . . EX-Prototype ID Bank 1 | . . . 1 . . . Fabricator Hacks . | . . . . . . . Repair Station Hacks . | . . . . . . . Recycling Unit Hacks 2 | . . . . . . 2 Retrieve Matter 1 | . . . . . . 1 Retrieve Components 1 | . . . . . . 1 Scanalyzer . | . . . . . . . Garrison Access Hacks . | . . . . . . . Unauthorized Hacks 5 | . 4 . . . . 1 Terminals 3 | . 3 . . . . . Track 2 | . 2 . . . . . Assimilate 1 | . 1 . . . . . Fabricators . | . . . . . . . Repair Stations 1 | . 1 . . . . . Mechanics 1 | . 1 . . . . . Recycling Units 1 | . . . . . . 1 Tunnel 1 | . . . . . . 1 Scanalyzers . | . . . . . . . Garrison Access . | . . . . . . . Data Cores Recovered . | . . . . . . . Used . | . . . . . . . Hacking Detections 5 | . 3 . . . 1 1 Full Trace Events . | . . . . . . . Feedback Events . | . . . . . . . Feedback Blocked . | . . . . . . . Robot Schematics Acquired . | . . . . . . . Robots Built . | . . . . . . . Matter . | . . . . . . . Time . | . . . . . . . Total Robot Build Rating . | . . . . . . . Part Schematics Acquired . | . . . . . . . Parts Built . | . . . . . . . Matter . | . . . . . . . Time . | . . . . . . . Total Part Build Rating . | . . . . . . . Parts Repaired . | . . . . . . . Time . | . . . . . . . Parts Recycled . | . . . . . . . Recycled Matter . | . . . . . . . Retrieved Matter . | . . . . . . . Retrieved Components 2 | . . . . . . 2 Parts Scanalyzed . | . . . . . . . Part Schematics Acquired . | . . . . . . . Parts Damaged . | . . . . . . . Bothacking | -11 -10 -10 -10 -9 -8 -8 ------------ Run | Scr Mat Min Exi Min Mat Sto Used RIF Installer . | . . . . . . . Robots Hacked . | . . . . . . . Non-combat . | . . . . . . . Combat . | . . . . . . . Robot Hacks Applied . | . . . . . . . Relay Couplers Released . | . . . . . . . Robots Rewired . | . . . . . . . Allies Hacked . | . . . . . . . Hacks Repelled . | . . . . . . . Allies | -11 -10 -10 -10 -9 -8 -8 -------- Run | Scr Mat Min Exi Min Mat Sto Total Allies . | . . . . . . . Largest Group . | . . . . . . . Highest-Rated Group . | . . . . . . . Highest-Rated Ally . | . . . . . . . Total Orders . | . . . . . . . Ally Attacks . | . . . . . . . Total Damage . | . . . . . . . Kills . | . . . . . . . Allies Corrupted . | . . . . . . . Allies Melted . | . . . . . . . Intel | -11 -10 -10 -10 -9 -8 -8 ------- Run | Scr Mat Min Exi Min Mat Sto Robot Analysis Total . | . . . . . . . Derelict Logs Recovered 2 | . . . . 2 . . Drone Launches . | . . . . . . . Drone Recoveries . | . . . . . . . Exploration | -11 -10 -10 -10 -9 -8 -8 ------------- Run | Scr Mat Min Exi Min Mat Sto Turns Passed 2542 | 95 720 463 441 366 33 424 Spaces Moved 1410 | 54 340 305 290 245 18 158 Core 6 | 1 . . . . . 5 Treads 79 | . . . . . . 79 Legs 1325 | 53 340 305 290 245 18 74 Wheels . | . . . . . . . Hover . | . . . . . . . Flight . | . . . . . . . Fastest Speed 50 | 50 120 150 150 150 180 160 Average Speed 151 | 118 138 150 150 150 180 192 Slowest Speed 900 | 120 150 150 150 150 180 900 Overloaded Moves . | . . . . . . . Propulsion Burnouts . | . . . . . . . Robots Hopped . | . . . . . . . Cave-ins Triggered . | . . . . . . . Exploration Rate (%) 39 | 4 59 52 61 62 4 31 Regions Visited 6 Branch Regions 4 Pre-discovered Areas 2 | . . . . 1 . 1 Known Exits Taken 2 | . 1 . . . 1 . Unknown Exits Taken 4 | 1 . 1 1 1 . . Scrap Searched 1 | . . 1 . . . . Spaces Dug 7 | . 1 . . . . 6 Terrain Destroyed 125 | . 17 . . . . 108 Melee . | . . . . . . . Projectile 1 | . 1 . . . . . AOE 124 | . 16 . . . . 108 Terrain Rammed . | . . . . . . . Walls Destroyed . | . . . . . . . Machines Disabled . | . . . . . . . Actions | -11 -10 -10 -10 -9 -8 -8 --------- Run | Scr Mat Min Exi Min Mat Sto Total 1668 | 78 487 308 299 244 19 233 Wait 54 | 2 38 1 . . . 13 Move 1404 | 53 339 304 289 244 17 158 Hop . | . . . . . . . Pick Up 45 | 12 21 . 5 . . 7 Fast Attach 1 | 1 . . . . . . Attach 19 | 6 3 . . . 2 8 Detach . | . . . . . . . Swap 9 | . 8 . . . . 1 Drop 16 | . 11 . 5 . . . Fire 120 | 4 67 3 . . . 46 Melee . | . . . . . . . Ram . | . . . . . . . Kick . | . . . . . . . Crush . | . . . . . . . Escape Stasis . | . . . . . . . Rewire . | . . . . . . . Trap . | . . . . . . . Miscellaneous . | . . . . . . . Route ------- -11/Scrapyard -10/Materials (discovered 3 exits: [*Mat x2] / *Min) -10/Mines (discovered 2 exits: [*Mat] / *Exi) -10/Exiles -9/Mines -8/Materials (discovered 3 exits: Fac / *Sto x2) -8/Storage History --------- Turn | Location | Event 5 | -11/Scrapyard | Discovered new exit (range 16) 96 | -11/Scrapyard | Entered Materials 247 | -10/Materials | Discovered new exit (range 9) 303 | -10/Materials | Identified exit to Mines 330 | -10/Materials | Build established: Mutant 474 | -10/Materials | Discovered new exit (range 11) 563 | -10/Materials | Core integrity fell below 50% 606 | -10/Materials | Lost 3 parts (1p2w) 816 | -10/Materials | Entered Mines 837 | -10/Mines | Met a Derelict bent on vengeance 992 | -10/Mines | Discovered new exit (range 5) 997 | -10/Mines | Core integrity fell below 20% 1273 | -10/Mines | Deemed a non-threat by the Exiles lab entrance 1273 | -10/Mines | Discovered new exit (range 5) 1279 | -10/Mines | Entered Exiles 1317 | -10/Exiles | Met 8R-AWN 1341 | -10/Exiles | Met EX-HEX 1383 | -10/Exiles | Met EX-BIN 1402 | -10/Exiles | Aligned with FarCom system 1404 | -10/Exiles | Given EX-Vault access code 1438 | -10/Exiles | Opened EX-Vault 1474 | -10/Exiles | Warned to stay clear of 0b10 Research branches 1550 | -10/Exiles | Found Latent Energy Streamer 1553 | -10/Exiles | Found Deploy-a-Sentry 1556 | -10/Exiles | Found Deploy-a-Sentry 1559 | -10/Exiles | Found Deploy-a-Sentry 1562 | -10/Exiles | Found Modified TNC 1636 | -10/Exiles | Met EX-DEC 1704 | -10/Exiles | Discovered new exit (range 14) 1720 | -10/Exiles | Stole three prototypes: Modified TNC, Latent Energy Streamer, Deploy-a-Sentry 1720 | -10/Exiles | Entered Mines 1738 | -9/Mines | Learned location of 2 exits from Materials 1816 | -9/Mines | Learned location of Storage (-8) 1882 | -9/Mines | Discovered new exit (range 13) 2086 | -9/Mines | Entered Materials 2086 | -8/Materials | Evolved 4 slots: Propulsion x1, Utility x2, Weapon x1 2087 | -8/Materials | Identified exit to Factory 2087 | -8/Materials | Identified exit to Storage 2099 | -8/Materials | Discovered exit to Storage (range 12) 2119 | -8/Materials | Entered Storage 2326 | -8/Storage | Lost 7 parts (1p2n4w) 2461 | -8/Storage | Lost 3 parts (1n2w) 2520 | -8/Storage | Core integrity fell below 50% 2535 | -8/Storage | Core integrity fell below 20% 2543 | -8/Storage | Destroyed by G-47 Trooper with Particle Gun Last Messages --------------- Important note for Steam players: Cogmind player global achievement rates displayed by Steam are all significantly underreported, in some cases by a huge margin, due to how they are calculated by Valve. >>Force(Tunnel) DISCOVERED[-5/Archives] 02496_ ALERT: Suspicious activity at Recycling Unit S001. Dispatching Investigation squad. 02498_ Acquired Launcher Guidance Computer. 02500_ K-01 Serf collects debris. 02501_ Acquired Gatling Laser. 02502_ Transfer Shaft disabled. 02508_ Penetrated by Slug. 02508_ Lgt. Treads destroyed. 02513_ Grenade Launcher destroyed. 02517_ The unstable cave ceiling collapses. 02517_ Lgt. Angular Momentum Engine destroyed. 02519_ The unstable cave ceiling collapses. 02520_ Penetrated by Slug. 02523_ Slug penetrates Wall. 02540_ Latent Energy Streamer destroyed. Map ----- +----------------------------------------------------+ | ??# #??# #?? | | ??# =%= ####+#### ##?# #?? | | ??# ## #+# #?????## #?# #?? | | ??# ??# ! ####?????# ####### ##?? | | ??# ???# # ##????#??# #### #??? | | ??#????# # ##???# #### # #??? | | ???????# ????# # #??? | | ???????# #????# """# #??? | | ???????# %# ##???# # """# #??? | | ???????# # #???# a # """# #??? | | ???????# # #????# # # #??? | | ???????# #????# ##+##### #??? | | ???????# ! #????# ???????????? | | ???????# # ###???# #????????? | | ???????#### # # ##??# """ #????????? | | ??#???????# ###??# gg""" #????????? | | ??# ####### #### """ #????????? | | ??# a #??????Y?? | | ??# #### # ### #????????? | | ???????### # # #?# """ #????????? | | ??? / # ###g "" #????????? | | ??# # h + g " +????????? | | ??#""" ??# """ #gg #????????? | | ?????????# # "Y # #????????? | | ?????????# #?# """ # ""#????????? | | ?????????# #?# # @ T"#????????? | | ?????????# #?# # ""#????????? | | ????????? #?### #### #???????? | | ???????? #???###??# +???????? | | ??????? g #????????##+###### #???????? | | ??????# ##### #?????????????????? ##???????? | | ??????# ?????a#???????????????????#????????? | | ?????? ??????+#????????????????????????????? | | ?????##??????g?????????????????????????????? | | ?????????????????????????????????Y?????????? | | ???????????????????????????????????????????? | | ???????????????????????????????????????????? | | ???????????????????????????????????????????? | | ??????????????????????Y????????????????????? | | ???????????????????????????????????????????? | | ???????????????????????????????????????????? | | ???????????????????????????????????????????? | | ??????????????????o????????????????????????? | | ???????????????????????????????????????????? | | ???????????????????????????????????????????? | | ???????????????????????????????????????????? | | ???????????????????????????????????????????? | | ???????????????????????????????????????????? | | ???????????????????????????????????????????? | | ???????????????????????????????????????????? | +----------------------------------------------------+ Best States ------------- Heat Dissipation 31 Energy Generation 18 Energy Capacity 250 Matter Stores 300 Matter Capacity 300 Sight Range 16 Terrain Scan Density 10 Evasion (%) 40 Recoil Reduction 2 Item Schematics ----------------- None Robot Schematics ------------------ None Fabricated ------------ Nothing Alien Tech Used ----------------- None Achievements -------------- Brute Force Challenges ------------ None Game ------ Seed DamperShadingVibroblade Manual? 0 Play Time 00:44:14 Cumulative 95.1 hours Start 2020.09.16 @ 23:22:09 End 2020.09.17 @ 00:20:39 Sessions 1 Manual Loads 0 Difficulty Rogue Special Mode None Game No. 69 Rogue 69 Adventurer 0 Explorer 0 Win Type - Total 0 Types 0/0/0/0/0/0/0/0/0 Lore% 22 Gallery% 42 Achievement% 32 Wizard Run 0 Options --------- ASCII 0 Keyboard 0 Movement Numpad Keybinds 0 Fullscreen 0 Font 16/SmallcapsGlow Map View 76x50 Tactical HUD 1 Map Filters NONE Filters NONE Steam 1 RUN: 4f6cc464-d8c5-4461-b0e3-d649db555e42